[Event "Titled Tuesday Blitz March 28 Late 2023"]
[White "Wang, Alexander J"]
[Black "Kozin, Yuri"]
[WhiteFideId "30955270"]
[BlackFideId "4129920"]
[WhiteElo "2313"]
[BlackElo "2420"]
[Result "0-1"]
[Round "09"]
[TimeControl "180+2"]
[Date "2023.03.28"]
[WhiteClock "0:00:17"]
[BlackClock "0:00:08"]

1. e4 {[%clk 0:03:00]}  c5 {[%clk 0:02:59]} 2. Nf3 {[%clk 0:03:00]}  e6 {[%clk 0:02:59]} 3. d4 {[%clk 0:03:01]}  cxd4 {[%clk 0:03:00]} 4. Nxd4 {[%clk 0:03:01]}  Nf6 {[%clk 0:03:01]} 5. Nc3 {[%clk 0:03:02]}  d6 {[%clk 0:03:01]} 6. Be3 {[%clk 0:02:59]}  a6 {[%clk 0:03:01]} 7. g3 {[%clk 0:02:57]}  b5 {[%clk 0:02:58]} 8. Bg2 {[%clk 0:02:56]}  Bb7 {[%clk 0:02:58]} 9. a3 {[%clk 0:02:55]}  Qc7 {[%clk 0:02:54]} 10. O-O {[%clk 0:02:52]}  Be7 {[%clk 0:02:55]} 11. h3 {[%clk 0:02:51]}  O-O {[%clk 0:02:53]} 12. f4 {[%clk 0:02:50]}  Rd8 {[%clk 0:02:49]} 13. g4 {[%clk 0:02:48]}  d5 {[%clk 0:02:49]} 14. e5 {[%clk 0:02:47]}  Ne4 {[%clk 0:02:49]} 15. Nxe4 {[%clk 0:02:41]}  dxe4 {[%clk 0:02:49]} 16. c3 {[%clk 0:02:40]}  Nc6 {[%clk 0:02:33]} 17. Qe2 {[%clk 0:02:35]}  Nxd4 {[%clk 0:02:20]} 18. cxd4 {[%clk 0:02:36]}  Bd5 {[%clk 0:02:10]} 19. Rfe1 {[%clk 0:02:25]}  b4 {[%clk 0:02:06]} 20. axb4 {[%clk 0:02:20]}  Bxb4 {[%clk 0:02:06]} 21. Rec1 {[%clk 0:02:20]}  Qb7 {[%clk 0:02:01]} 22. f5 {[%clk 0:02:13]}  Be7 {[%clk 0:01:46]} 23. Rf1 {[%clk 0:01:57]}  Rdc8 {[%clk 0:01:37]} 24. Rac1 {[%clk 0:01:42]}  Rab8 {[%clk 0:01:28]} 25. f6 {[%clk 0:01:34]}  Bf8 {[%clk 0:01:10]} 26. fxg7 {[%clk 0:01:30]}  Bxg7 {[%clk 0:01:11]} 27. Rxc8+ {[%clk 0:01:25]}  Rxc8 {[%clk 0:01:11]} 28. Rc1 {[%clk 0:01:24]}  Rb8 {[%clk 0:00:56]} 29. h4 {[%clk 0:01:03]}  Bf8 {[%clk 0:00:41]} 30. Rc2 {[%clk 0:00:51]}  Be7 {[%clk 0:00:37]} 31. h5 {[%clk 0:00:44]}  Qb3 {[%clk 0:00:22]} 32. h6 {[%clk 0:00:29]}  Qd3 {[%clk 0:00:14]} 33. Qxd3 {[%clk 0:00:21]}  exd3 {[%clk 0:00:15]} 34. Rd2 {[%clk 0:00:21]}  Bc4 {[%clk 0:00:13]} 35. Be4 {[%clk 0:00:21]}  Bb4 {[%clk 0:00:13]} 36. Rd1 {[%clk 0:00:20]}  Bb3 {[%clk 0:00:12]} 37. Rxd3 {[%clk 0:00:19]}  Bc2 {[%clk 0:00:12]} 38. Rc3 {[%clk 0:00:16]}  Bxc3 {[%clk 0:00:11]} 39. Bxc2 {[%clk 0:00:16]}  Rxb2 {[%clk 0:00:11]} 40. Bd3 {[%clk 0:00:15]}  Bxd4 {[%clk 0:00:10]} 41. Bxd4 {[%clk 0:00:12]}  Rd2 {[%clk 0:00:10]} 42. Bxa6 {[%clk 0:00:12]}  Rxd4 {[%clk 0:00:10]} 43. Be2 {[%clk 0:00:11]}  Re4 {[%clk 0:00:11]} 44. Bf3 {[%clk 0:00:12]}  Rxe5 {[%clk 0:00:11]} 45. Kf2 {[%clk 0:00:12]}  Ra5 {[%clk 0:00:10]} 46. Ke3 {[%clk 0:00:13]}  f6 {[%clk 0:00:11]} 47. Kf4 {[%clk 0:00:13]}  Ra4+ {[%clk 0:00:11]} 48. Ke3 {[%clk 0:00:12]}  Ra3+ {[%clk 0:00:10]} 49. Ke2 {[%clk 0:00:12]}  Ra5 {[%clk 0:00:10]} 50. Ke3 {[%clk 0:00:12]}  Ra2 {[%clk 0:00:09]} 51. Be4 {[%clk 0:00:12]}  Rh2 {[%clk 0:00:09]} 52. Kf4 {[%clk 0:00:10]}  Rxh6 {[%clk 0:00:09]} 53. g5 {[%clk 0:00:09]}  fxg5+ {[%clk 0:00:08]} 54. Kxg5 {[%clk 0:00:10]}  Rh2 {[%clk 0:00:09]} 55. Kf4 {[%clk 0:00:10]}  Kf7 {[%clk 0:00:09]} 56. Bf3 {[%clk 0:00:10]}  Kf6 {[%clk 0:00:09]} 57. Ke3 {[%clk 0:00:10]}  Rb2 {[%clk 0:00:08]} 58. Bg4 {[%clk 0:00:11]}  Rb3+ {[%clk 0:00:08]} 59. Kf2 {[%clk 0:00:11]}  Rb4 {[%clk 0:00:07]} 60. Be2 {[%clk 0:00:11]}  h6 {[%clk 0:00:07]} 61. Bd3 {[%clk 0:00:11]}  Rb3 {[%clk 0:00:07]} 62. Be4 {[%clk 0:00:11]}  Ra3 {[%clk 0:00:07]} 63. Kg2 {[%clk 0:00:12]}  Kg5 {[%clk 0:00:07]} 64. Kf2 {[%clk 0:00:11]}  Kf4 {[%clk 0:00:08]} 65. Bc6 {[%clk 0:00:11]}  Ra2+ {[%clk 0:00:08]} 66. Kf1 {[%clk 0:00:12]}  e5 {[%clk 0:00:08]} 67. Bd5 {[%clk 0:00:12]}  Rb2 {[%clk 0:00:09]} 68. Bc6 {[%clk 0:00:11]}  e4 {[%clk 0:00:09]} 69. Ke1 {[%clk 0:00:12]}  Ke3 {[%clk 0:00:09]} 70. Kd1 {[%clk 0:00:12]}  h5 {[%clk 0:00:08]} 71. Be8 {[%clk 0:00:11]}  h4 {[%clk 0:00:08]} 72. Bd7 {[%clk 0:00:12]}  Rh2 {[%clk 0:00:07]} 73. Bg4 {[%clk 0:00:11]}  Kd3 {[%clk 0:00:06]} 74. Ke1 {[%clk 0:00:11]}  e3 {[%clk 0:00:07]} 75. Bf5+ {[%clk 0:00:11]}  Kd4 {[%clk 0:00:07]} 76. Kf1 {[%clk 0:00:11]}  Rb2 {[%clk 0:00:06]} 77. Bh3 {[%clk 0:00:09]}  Ke5 {[%clk 0:00:06]} 78. Ke1 {[%clk 0:00:09]}  Kf4 {[%clk 0:00:06]} 79. Bd7 {[%clk 0:00:08]}  Kg3 {[%clk 0:00:06]} 80. Bc6 {[%clk 0:00:08]}  h3 {[%clk 0:00:06]} 81. Kd1 {[%clk 0:00:09]}  h2 {[%clk 0:00:06]} 82. Kc1 {[%clk 0:00:09]}  Rg2 {[%clk 0:00:06]} 83. Bxg2 {[%clk 0:00:09]}  Kxg2 {[%clk 0:00:06]} 84. Kd1 {[%clk 0:00:10]}  Kf2 {[%clk 0:00:06]} 85. Kc2 {[%clk 0:00:10]}  e2 {[%clk 0:00:06]} 86. Kd2 {[%clk 0:00:10]}  e1=Q+ {[%clk 0:00:07]} 87. Kd3 {[%clk 0:00:11]}  Qe3+ {[%clk 0:00:06]} 88. Kc4 {[%clk 0:00:11]}  Qd2 {[%clk 0:00:07]} 89. Kc5 {[%clk 0:00:12]}  Qd3 {[%clk 0:00:07]} 90. Kb4 {[%clk 0:00:13]}  Qc2 {[%clk 0:00:07]} 91. Kb5 {[%clk 0:00:14]}  Qc3 {[%clk 0:00:08]} 92. Ka4 {[%clk 0:00:15]}  Qb2 {[%clk 0:00:08]} 93. Ka5 {[%clk 0:00:16]}  h1=Q {[%clk 0:00:08]} 94. Ka4 {[%clk 0:00:17]}  Qha1# {[%clk 0:00:08]} 0-1


[Site "https://www.chess.com"]

[Event "Titled Tuesday Blitz March 28 Late 2023"]
[White "Rios Escobar, Adan"]
[Black "Lalanne, Pablo"]
[WhiteFideId "3403645"]
[BlackFideId "112151"]
[WhiteElo "2409"]
[BlackElo "2120"]
[Result "1-0"]
[Round "09"]
[TimeControl "180+2"]
[Date "2023.03.28"]
[WhiteClock "0:02:00"]
[BlackClock "0:01:39"]

1. d4 {[%clk 0:02:58]}  d5 {[%clk 0:02:59]} 2. g3 {[%clk 0:02:57]}  e6 {[%clk 0:02:59]} 3. Bg2 {[%clk 0:02:56]}  c5 {[%clk 0:02:59]} 4. Nf3 {[%clk 0:02:56]}  Nc6 {[%clk 0:02:59]} 5. O-O {[%clk 0:02:56]}  Nf6 {[%clk 0:02:59]} 6. c4 {[%clk 0:02:56]}  Be7 {[%clk 0:02:56]} 7. cxd5 {[%clk 0:02:56]}  exd5 {[%clk 0:02:57]} 8. dxc5 {[%clk 0:02:56]}  Bxc5 {[%clk 0:02:57]} 9. a3 {[%clk 0:02:57]}  a6 {[%clk 0:02:54]} 10. b4 {[%clk 0:02:57]}  Ba7 {[%clk 0:02:54]} 11. Bb2 {[%clk 0:02:57]}  O-O {[%clk 0:02:53]} 12. Nc3 {[%clk 0:02:58]}  Re8 {[%clk 0:02:43]} 13. Rc1 {[%clk 0:02:57]}  Bg4 {[%clk 0:02:37]} 14. h3 {[%clk 0:02:56]}  Bh5 {[%clk 0:02:37]} 15. g4 {[%clk 0:02:53]}  Bg6 {[%clk 0:02:37]} 16. e3 {[%clk 0:02:53]}  Qd6 {[%clk 0:02:29]} 17. Ne2 {[%clk 0:02:47]}  Ne4 {[%clk 0:02:20]} 18. Nf4 {[%clk 0:02:44]}  Nxf2 {[%clk 0:02:00]} 19. Rxf2 {[%clk 0:02:29]}  Bxe3 {[%clk 0:01:58]} 20. Nxd5 {[%clk 0:02:18]}  Qg3 {[%clk 0:01:42]} 21. Nxe3 {[%clk 0:02:10]}  Rxe3 {[%clk 0:01:42]} 22. Rxc6 {[%clk 0:02:01]}  bxc6 {[%clk 0:01:39]} 23. Qd4 {[%clk 0:02:00]} 1-0


[Site "https://www.chess.com"]

[Event "Titled Tuesday Blitz March 28 Late 2023"]
[White "Lorenzo De La Riva, Lazaro"]
[Black "Dubreuil, Julien"]
[WhiteFideId "2268809"]
[BlackFideId "621285"]
[WhiteElo "2294"]
[BlackElo "2286"]
[Result "0-1"]
[Round "09"]
[TimeControl "180+2"]
[Date "2023.03.28"]
[WhiteClock "0:00:06"]
[BlackClock "0:00:09"]

1. d4 {[%clk 0:02:53]}  Nf6 {[%clk 0:02:59]} 2. Bf4 {[%clk 0:02:53]}  c5 {[%clk 0:02:59]} 3. d5 {[%clk 0:02:52]}  Qb6 {[%clk 0:02:58]} 4. Qc1 {[%clk 0:02:45]}  Nxd5 {[%clk 0:02:57]} 5. Bg3 {[%clk 0:02:45]}  Nf6 {[%clk 0:02:53]} 6. c4 {[%clk 0:02:43]}  Nc6 {[%clk 0:02:47]} 7. Nc3 {[%clk 0:02:42]}  g6 {[%clk 0:02:40]} 8. Nf3 {[%clk 0:02:36]}  Bg7 {[%clk 0:02:40]} 9. h4 {[%clk 0:02:35]}  h6 {[%clk 0:02:37]} 10. e3 {[%clk 0:02:34]}  O-O {[%clk 0:02:37]} 11. Bd3 {[%clk 0:02:33]}  Nb4 {[%clk 0:02:32]} 12. Bb1 {[%clk 0:02:31]}  d5 {[%clk 0:02:30]} 13. O-O {[%clk 0:02:28]}  dxc4 {[%clk 0:02:30]} 14. Ne5 {[%clk 0:02:27]}  Be6 {[%clk 0:02:26]} 15. a3 {[%clk 0:02:27]}  Nc6 {[%clk 0:02:24]} 16. Na4 {[%clk 0:02:21]}  Qb5 {[%clk 0:02:19]} 17. Nc3 {[%clk 0:02:18]}  Qa5 {[%clk 0:02:16]} 18. Nxc6 {[%clk 0:02:16]}  bxc6 {[%clk 0:02:17]} 19. Be5 {[%clk 0:02:10]}  Nd5 {[%clk 0:02:13]} 20. Bxg7 {[%clk 0:02:08]}  Kxg7 {[%clk 0:02:14]} 21. Ne4 {[%clk 0:02:08]}  Rab8 {[%clk 0:02:10]} 22. h5 {[%clk 0:02:07]}  Qb5 {[%clk 0:02:04]} 23. Ba2 {[%clk 0:01:52]}  Nb6 {[%clk 0:01:57]} 24. hxg6 {[%clk 0:01:45]}  fxg6 {[%clk 0:01:52]} 25. Nc3 {[%clk 0:01:44]}  Qa6 {[%clk 0:01:46]} 26. Qc2 {[%clk 0:01:38]}  Qc8 {[%clk 0:01:26]} 27. Qe4 {[%clk 0:01:36]}  Rf7 {[%clk 0:01:22]} 28. Qe5+ {[%clk 0:01:35]}  Kh7 {[%clk 0:01:18]} 29. Qxc5 {[%clk 0:01:36]}  Nd7 {[%clk 0:01:15]} 30. Qd4 {[%clk 0:01:34]}  Rxb2 {[%clk 0:01:09]} 31. Ne4 {[%clk 0:01:28]}  Rb6 {[%clk 0:01:08]} 32. Bxc4 {[%clk 0:01:22]}  c5 {[%clk 0:01:03]} 33. Qc3 {[%clk 0:01:21]}  Bxc4 {[%clk 0:01:02]} 34. Qxc4 {[%clk 0:01:22]}  Ne5 {[%clk 0:01:02]} 35. Qc3 {[%clk 0:01:22]}  Qf5 {[%clk 0:01:01]} 36. Ng3 {[%clk 0:01:21]}  Qg5 {[%clk 0:00:57]} 37. Rad1 {[%clk 0:01:17]}  c4 {[%clk 0:00:56]} 38. f4 {[%clk 0:01:00]}  Qxg3 {[%clk 0:00:55]} 39. Qxe5 {[%clk 0:01:00]}  Rc6 {[%clk 0:00:42]} 40. Rd8 {[%clk 0:00:59]}  Rg7 {[%clk 0:00:41]} 41. Qe4 {[%clk 0:00:53]}  Rd6 {[%clk 0:00:38]} 42. Rxd6 {[%clk 0:00:46]}  exd6 {[%clk 0:00:39]} 43. Qxc4 {[%clk 0:00:46]}  Qxe3+ {[%clk 0:00:39]} 44. Kh1 {[%clk 0:00:44]}  Qc5 {[%clk 0:00:38]} 45. Qd3 {[%clk 0:00:42]}  d5 {[%clk 0:00:37]} 46. Rd1 {[%clk 0:00:39]}  Qc4 {[%clk 0:00:33]} 47. Qf3 {[%clk 0:00:33]}  Rf7 {[%clk 0:00:31]} 48. Qxd5 {[%clk 0:00:25]}  Qxf4 {[%clk 0:00:27]} 49. Qd4 {[%clk 0:00:22]}  Qf5 {[%clk 0:00:15]} 50. Qh4 {[%clk 0:00:20]}  h5 {[%clk 0:00:14]} 51. Re1 {[%clk 0:00:19]}  a5 {[%clk 0:00:13]} 52. Qc4 {[%clk 0:00:16]}  Qf4 {[%clk 0:00:09]} 53. Qxf4 {[%clk 0:00:14]}  Rxf4 {[%clk 0:00:10]} 54. Re3 {[%clk 0:00:14]}  Ra4 {[%clk 0:00:10]} 55. Rc3 {[%clk 0:00:13]}  Kh6 {[%clk 0:00:09]} 56. Kh2 {[%clk 0:00:14]}  Kg5 {[%clk 0:00:09]} 57. Kg3 {[%clk 0:00:14]}  h4+ {[%clk 0:00:09]} 58. Kh3 {[%clk 0:00:14]}  Kh5 {[%clk 0:00:10]} 59. Rc5+ {[%clk 0:00:13]}  g5 {[%clk 0:00:10]} 60. Rc3 {[%clk 0:00:13]}  g4+ {[%clk 0:00:10]} 61. Kh2 {[%clk 0:00:14]}  Kg5 {[%clk 0:00:11]} 62. Rc5+ {[%clk 0:00:13]}  Kf4 {[%clk 0:00:11]} 63. Rc3 {[%clk 0:00:14]}  Re4 {[%clk 0:00:10]} 64. Rc5 {[%clk 0:00:14]}  a4 {[%clk 0:00:10]} 65. Ra5 {[%clk 0:00:12]}  Rd4 {[%clk 0:00:07]} 66. Ra7 {[%clk 0:00:11]}  Ke3 {[%clk 0:00:06]} 67. Re7+ {[%clk 0:00:09]}  Kd3 {[%clk 0:00:06]} 68. Rh7 {[%clk 0:00:08]}  Kc3 {[%clk 0:00:06]} 69. Rxh4 {[%clk 0:00:07]}  Kb3 {[%clk 0:00:06]} 70. Rh8 {[%clk 0:00:07]}  Kxa3 {[%clk 0:00:06]} 71. Rb8 {[%clk 0:00:07]}  Ka2 {[%clk 0:00:06]} 72. Ra8 {[%clk 0:00:07]}  a3 {[%clk 0:00:06]} 73. Kg3 {[%clk 0:00:08]}  Kb2 {[%clk 0:00:06]} 74. Rb8+ {[%clk 0:00:08]}  Ka1 {[%clk 0:00:05]} 75. Ra8 {[%clk 0:00:08]}  a2 {[%clk 0:00:06]} 76. Rb8 {[%clk 0:00:08]}  Rd2 {[%clk 0:00:05]} 77. Kxg4 {[%clk 0:00:07]}  Rxg2+ {[%clk 0:00:06]} 78. Kf3 {[%clk 0:00:07]}  Rb2 {[%clk 0:00:07]} 79. Rh8 {[%clk 0:00:06]}  Kb1 {[%clk 0:00:07]} 80. Rh1+ {[%clk 0:00:06]}  Kc2 {[%clk 0:00:07]} 81. Rh2+ {[%clk 0:00:07]}  Kc3 {[%clk 0:00:08]} 82. Rh8 {[%clk 0:00:07]}  a1=Q {[%clk 0:00:07]} 83. Rc8+ {[%clk 0:00:07]}  Kb3 {[%clk 0:00:08]} 84. Rb8+ {[%clk 0:00:08]}  Kc2 {[%clk 0:00:08]} 85. Rc8+ {[%clk 0:00:08]}  Kb1 {[%clk 0:00:09]} 86. Rc3 {[%clk 0:00:07]}  Rc2 {[%clk 0:00:07]} 87. Rb3+ {[%clk 0:00:07]}  Kc1 {[%clk 0:00:08]} 88. Re3 {[%clk 0:00:06]}  Rc3 {[%clk 0:00:09]} 89. Ke2 {[%clk 0:00:05]}  Rxe3+ {[%clk 0:00:09]} 90. Kxe3 {[%clk 0:00:06]}  Qc3+ {[%clk 0:00:09]} 0-1


[Site "https://www.chess.com"]

[Event "Titled Tuesday Blitz March 28 Late 2023"]
[White "Muhammad, Shahzeb"]
[Black "Nikolova, Adriana"]
[WhiteFideId "7804806"]
[BlackFideId "2908689"]
[WhiteElo "2279"]
[BlackElo "2213"]
[Result "1-0"]
[Round "09"]
[TimeControl "180+2"]
[Date "2023.03.28"]
[WhiteClock "0:00:12"]
[BlackClock "0:00:02"]

1. d4 {[%clk 0:02:57]}  d5 {[%clk 0:02:59]} 2. Nf3 {[%clk 0:02:54]}  Nf6 {[%clk 0:02:59]} 3. g3 {[%clk 0:02:55]}  e6 {[%clk 0:02:55]} 4. Bg2 {[%clk 0:02:56]}  Be7 {[%clk 0:02:56]} 5. O-O {[%clk 0:02:55]}  O-O {[%clk 0:02:57]} 6. c4 {[%clk 0:02:55]}  dxc4 {[%clk 0:02:58]} 7. Nc3 {[%clk 0:02:52]}  a6 {[%clk 0:02:56]} 8. Ne5 {[%clk 0:02:48]}  Nc6 {[%clk 0:02:56]} 9. Bxc6 {[%clk 0:02:37]}  bxc6 {[%clk 0:02:57]} 10. e3 {[%clk 0:02:26]}  c5 {[%clk 0:02:54]} 11. dxc5 {[%clk 0:02:24]}  Bxc5 {[%clk 0:02:50]} 12. Nxc4 {[%clk 0:02:13]}  Nd5 {[%clk 0:02:41]} 13. Nxd5 {[%clk 0:02:05]}  exd5 {[%clk 0:02:42]} 14. Ne5 {[%clk 0:02:06]}  Bh3 {[%clk 0:02:31]} 15. Re1 {[%clk 0:01:58]}  Qf6 {[%clk 0:02:24]} 16. Nd3 {[%clk 0:01:52]}  Bd6 {[%clk 0:02:12]} 17. Bd2 {[%clk 0:01:47]}  Qf5 {[%clk 0:02:02]} 18. Nf4 {[%clk 0:01:24]}  Bxf4 {[%clk 0:01:36]} 19. exf4 {[%clk 0:01:24]}  d4 {[%clk 0:01:34]} 20. Qf3 {[%clk 0:01:14]}  Rab8 {[%clk 0:01:29]} 21. b3 {[%clk 0:01:09]}  Rfe8 {[%clk 0:01:14]} 22. Qc6 {[%clk 0:00:58]}  Rxe1+ {[%clk 0:01:09]} 23. Rxe1 {[%clk 0:00:57]}  Rf8 {[%clk 0:00:55]} 24. Bb4 {[%clk 0:00:50]}  g6 {[%clk 0:00:32]} 25. Bxf8 {[%clk 0:00:49]}  Kxf8 {[%clk 0:00:33]} 26. Qe8+ {[%clk 0:00:45]}  Kg7 {[%clk 0:00:33]} 27. Qe5+ {[%clk 0:00:46]}  Qxe5 {[%clk 0:00:28]} 28. fxe5 {[%clk 0:00:40]}  d3 {[%clk 0:00:21]} 29. Re3 {[%clk 0:00:35]}  Bf5 {[%clk 0:00:19]} 30. Kf1 {[%clk 0:00:29]}  g5 {[%clk 0:00:19]} 31. Ke1 {[%clk 0:00:29]}  Kf8 {[%clk 0:00:18]} 32. Kd2 {[%clk 0:00:28]}  Ke7 {[%clk 0:00:18]} 33. f4 {[%clk 0:00:23]}  gxf4 {[%clk 0:00:16]} 34. gxf4 {[%clk 0:00:23]}  Ke6 {[%clk 0:00:16]} 35. Re1 {[%clk 0:00:16]}  c5 {[%clk 0:00:15]} 36. Ke3 {[%clk 0:00:16]}  Kd5 {[%clk 0:00:15]} 37. Rc1 {[%clk 0:00:15]}  Bg6 {[%clk 0:00:11]} 38. Rd1 {[%clk 0:00:15]}  a5 {[%clk 0:00:09]} 39. Rd2 {[%clk 0:00:14]}  Bf5 {[%clk 0:00:09]} 40. a3 {[%clk 0:00:14]}  Bg6 {[%clk 0:00:09]} 41. Rg2 {[%clk 0:00:14]}  c4 {[%clk 0:00:07]} 42. bxc4+ {[%clk 0:00:13]}  Kxc4 {[%clk 0:00:08]} 43. Rf2 {[%clk 0:00:14]}  Bf5 {[%clk 0:00:07]} 44. Rg2 {[%clk 0:00:14]}  Kc3 {[%clk 0:00:06]} 45. Rd2 {[%clk 0:00:13]}  Kb3 {[%clk 0:00:05]} 46. Rxd3+ {[%clk 0:00:13]}  Bxd3 {[%clk 0:00:05]} 47. Kxd3 {[%clk 0:00:13]}  Kxa3 {[%clk 0:00:06]} 48. f5 {[%clk 0:00:14]}  a4 {[%clk 0:00:06]} 49. e6 {[%clk 0:00:15]}  fxe6 {[%clk 0:00:06]} 50. fxe6 {[%clk 0:00:13]}  Kb2 {[%clk 0:00:07]} 51. e7 {[%clk 0:00:14]}  a3 {[%clk 0:00:08]} 52. e8=Q {[%clk 0:00:15]}  a2 {[%clk 0:00:09]} 53. Qe5+ {[%clk 0:00:15]}  Kb1 {[%clk 0:00:09]} 54. Qe1+ {[%clk 0:00:15]}  Kb2 {[%clk 0:00:09]} 55. Qb4+ {[%clk 0:00:15]}  Kc1 {[%clk 0:00:07]} 56. Qc3+ {[%clk 0:00:14]}  Kb1 {[%clk 0:00:06]} 57. Qb3+ {[%clk 0:00:14]}  Kc1 {[%clk 0:00:05]} 58. Qa3+ {[%clk 0:00:14]}  Kb1 {[%clk 0:00:05]} 59. Kd2 {[%clk 0:00:13]}  a1=Q {[%clk 0:00:03]} 60. Qc1+ {[%clk 0:00:13]}  Ka2 {[%clk 0:00:03]} 61. Qc2+ {[%clk 0:00:13]}  Qb2 {[%clk 0:00:02]} 62. h4 {[%clk 0:00:12]} 1-0


[Site "https://www.chess.com"]

[Event "Titled Tuesday Blitz March 28 Late 2023"]
[White "Kornyukov, Alexey"]
[Black "Buchenau, Frank"]
[WhiteFideId "4150457"]
[BlackFideId "4604350"]
[WhiteElo "2352"]
[BlackElo "2157"]
[Result "1-0"]
[Round "09"]
[TimeControl "180+2"]
[Date "2023.03.28"]
[WhiteClock "0:00:23"]
[BlackClock "0:01:50"]

1. d4 {[%clk 0:03:00]}  e6 {[%clk 0:02:59]} 2. c4 {[%clk 0:02:59]}  Nf6 {[%clk 0:03:00]} 3. Nc3 {[%clk 0:02:59]}  Bb4 {[%clk 0:02:59]} 4. f3 {[%clk 0:02:59]}  Nc6 {[%clk 0:02:57]} 5. e4 {[%clk 0:02:56]}  d5 {[%clk 0:02:56]} 6. cxd5 {[%clk 0:02:40]}  exd5 {[%clk 0:02:57]} 7. e5 {[%clk 0:02:41]}  Nd7 {[%clk 0:02:54]} 8. f4 {[%clk 0:02:35]}  Nb6 {[%clk 0:02:53]} 9. Nf3 {[%clk 0:02:29]}  Bf5 {[%clk 0:02:52]} 10. Bd3 {[%clk 0:02:24]}  Qd7 {[%clk 0:02:47]} 11. O-O {[%clk 0:02:10]}  O-O {[%clk 0:02:46]} 12. a3 {[%clk 0:01:48]}  Bxc3 {[%clk 0:02:43]} 13. bxc3 {[%clk 0:01:48]}  Ne7 {[%clk 0:02:31]} 14. Nh4 {[%clk 0:01:38]}  Bxd3 {[%clk 0:02:25]} 15. Qxd3 {[%clk 0:01:38]}  f5 {[%clk 0:02:21]} 16. exf6 {[%clk 0:01:28]}  Rxf6 {[%clk 0:02:21]} 17. f5 {[%clk 0:01:27]}  Raf8 {[%clk 0:02:18]} 18. Bg5 {[%clk 0:01:26]}  R6f7 {[%clk 0:02:17]} 19. f6 {[%clk 0:01:13]}  gxf6 {[%clk 0:02:16]} 20. Bh6 {[%clk 0:01:13]}  Re8 {[%clk 0:02:15]} 21. Qg3+ {[%clk 0:00:42]}  Kh8 {[%clk 0:02:13]} 22. Rxf6 {[%clk 0:00:33]}  Rg8 {[%clk 0:02:01]} 23. Qf2 {[%clk 0:00:27]}  Rfg7 {[%clk 0:01:51]} 24. Bxg7+ {[%clk 0:00:25]}  Kxg7 {[%clk 0:01:50]} 25. Rf7+ {[%clk 0:00:23]} 1-0


[Site "https://www.chess.com"]

[Event "Titled Tuesday Blitz March 28 Late 2023"]
[White "Zavortink, Matt"]
[Black "Pirvulescu, Ekaterina"]
[WhiteFideId "2034263"]
[BlackFideId "13506374"]
[WhiteElo "2364"]
[BlackElo "2006"]
[Result "1-0"]
[Round "09"]
[TimeControl "180+2"]
[Date "2023.03.28"]
[WhiteClock "0:00:20"]
[BlackClock "0:00:04"]

1. c4 {[%clk 0:03:00]}  e5 {[%clk 0:02:51]} 2. Nc3 {[%clk 0:03:00]}  Nc6 {[%clk 0:02:47]} 3. Nf3 {[%clk 0:03:00]}  Nf6 {[%clk 0:02:47]} 4. e4 {[%clk 0:03:00]}  Bc5 {[%clk 0:02:47]} 5. Nxe5 {[%clk 0:02:59]}  Nxe5 {[%clk 0:02:40]} 6. d4 {[%clk 0:02:59]}  Bxd4 {[%clk 0:02:30]} 7. Qxd4 {[%clk 0:02:58]}  d6 {[%clk 0:02:27]} 8. Be2 {[%clk 0:02:56]}  O-O {[%clk 0:02:26]} 9. O-O {[%clk 0:02:55]}  h6 {[%clk 0:02:24]} 10. f3 {[%clk 0:02:51]}  Be6 {[%clk 0:02:20]} 11. Be3 {[%clk 0:02:49]}  Qe7 {[%clk 0:02:05]} 12. Rac1 {[%clk 0:02:24]}  Rfd8 {[%clk 0:01:58]} 13. Nd5 {[%clk 0:02:22]}  Bxd5 {[%clk 0:01:52]} 14. cxd5 {[%clk 0:02:21]}  c5 {[%clk 0:01:45]} 15. dxc6 {[%clk 0:02:16]}  Nxc6 {[%clk 0:01:39]} 16. Qa4 {[%clk 0:02:09]}  d5 {[%clk 0:01:37]} 17. Bc5 {[%clk 0:02:08]}  Qe5 {[%clk 0:01:25]} 18. Bb5 {[%clk 0:01:50]}  dxe4 {[%clk 0:01:16]} 19. fxe4 {[%clk 0:01:22]}  Qxe4 {[%clk 0:01:06]} 20. Bc4 {[%clk 0:01:03]}  Rd2 {[%clk 0:00:49]} 21. Bxf7+ {[%clk 0:00:59]}  Kh8 {[%clk 0:00:40]} 22. Qxe4 {[%clk 0:00:55]}  Nxe4 {[%clk 0:00:39]} 23. Ba3 {[%clk 0:00:49]}  Nd4 {[%clk 0:00:35]} 24. Bh5 {[%clk 0:00:30]}  Kh7 {[%clk 0:00:27]} 25. Rcd1 {[%clk 0:00:23]}  Rxd1 {[%clk 0:00:18]} 26. Rxd1 {[%clk 0:00:24]}  Nb5 {[%clk 0:00:16]} 27. Bb4 {[%clk 0:00:21]}  a5 {[%clk 0:00:15]} 28. Be1 {[%clk 0:00:21]}  Nf6 {[%clk 0:00:13]} 29. Bf3 {[%clk 0:00:21]}  Rb8 {[%clk 0:00:11]} 30. a4 {[%clk 0:00:21]}  Nc7 {[%clk 0:00:07]} 31. Bg3 {[%clk 0:00:21]}  Nfe8 {[%clk 0:00:04]} 32. Rd7 {[%clk 0:00:20]} 1-0


[Site "https://www.chess.com"]

[Event "Titled Tuesday Blitz March 28 Late 2023"]
[White "Fajdetic, Hrvoje"]
[Black "Nery Junior, Jose Antonio"]
[WhiteFideId "14501945"]
[BlackFideId "2104822"]
[WhiteElo "2185"]
[BlackElo "2197"]
[Result "0-1"]
[Round "09"]
[TimeControl "180+2"]
[Date "2023.03.28"]
[WhiteClock "0:00:01"]
[BlackClock "0:00:13"]

1. f4 {[%clk 0:02:56]}  e5 {[%clk 0:02:59]} 2. fxe5 {[%clk 0:02:55]}  d6 {[%clk 0:03:00]} 3. exd6 {[%clk 0:02:55]}  Bxd6 {[%clk 0:02:59]} 4. Nf3 {[%clk 0:02:55]}  Bg4 {[%clk 0:02:59]} 5. d4 {[%clk 0:02:38]}  Bxf3 {[%clk 0:02:41]} 6. exf3 {[%clk 0:02:25]}  Qh4+ {[%clk 0:02:40]} 7. Ke2 {[%clk 0:02:23]}  Nf6 {[%clk 0:02:31]} 8. Nc3 {[%clk 0:02:07]}  O-O {[%clk 0:02:29]} 9. Be3 {[%clk 0:02:06]}  Re8 {[%clk 0:02:26]} 10. Qd3 {[%clk 0:01:49]}  Nc6 {[%clk 0:01:40]} 11. Kd2 {[%clk 0:01:30]}  Nb4 {[%clk 0:01:26]} 12. Qc4 {[%clk 0:01:16]}  Rxe3 {[%clk 0:01:09]} 13. Kxe3 {[%clk 0:01:15]}  Nxc2+ {[%clk 0:01:06]} 14. Kd2 {[%clk 0:01:14]}  Nxa1 {[%clk 0:01:06]} 15. Bd3 {[%clk 0:01:13]}  Qf2+ {[%clk 0:01:02]} 16. Ne2 {[%clk 0:01:12]}  Qxg2 {[%clk 0:00:20]} 17. Rxa1 {[%clk 0:01:09]}  Qxf3 {[%clk 0:00:20]} 18. Kc2 {[%clk 0:00:51]}  Re8 {[%clk 0:00:18]} 19. Rd1 {[%clk 0:00:28]}  Nd5 {[%clk 0:00:18]} 20. Ng1 {[%clk 0:00:11]}  Qxd1+ {[%clk 0:00:18]} 21. Kxd1 {[%clk 0:00:10]}  Ne3+ {[%clk 0:00:18]} 22. Kd2 {[%clk 0:00:10]}  Nxc4+ {[%clk 0:00:19]} 23. Bxc4 {[%clk 0:00:11]}  Bxh2 {[%clk 0:00:16]} 24. Nf3 {[%clk 0:00:11]}  Bf4+ {[%clk 0:00:17]} 25. Kd3 {[%clk 0:00:11]}  Re7 {[%clk 0:00:17]} 26. b4 {[%clk 0:00:11]}  Kf8 {[%clk 0:00:17]} 27. a4 {[%clk 0:00:11]}  f6 {[%clk 0:00:17]} 28. a5 {[%clk 0:00:11]}  c6 {[%clk 0:00:18]} 29. Nh4 {[%clk 0:00:09]}  g6 {[%clk 0:00:17]} 30. Ng2 {[%clk 0:00:09]}  g5 {[%clk 0:00:16]} 31. a6 {[%clk 0:00:08]}  b6 {[%clk 0:00:15]} 32. d5 {[%clk 0:00:05]}  cxd5 {[%clk 0:00:15]} 33. Bxd5 {[%clk 0:00:06]}  Rd7 {[%clk 0:00:15]} 34. Ke4 {[%clk 0:00:06]}  Ke7 {[%clk 0:00:15]} 35. b5 {[%clk 0:00:06]}  Rc7 {[%clk 0:00:14]} 36. Bc6 {[%clk 0:00:05]}  Kd6 {[%clk 0:00:13]} 37. Nxf4 {[%clk 0:00:03]}  gxf4 {[%clk 0:00:13]} 38. Bd5 {[%clk 0:00:01]}  Rc5 {[%clk 0:00:13]} 0-1


[Site "https://www.chess.com"]